bitfinex/quotes_ETHUSD_20220117
["timestamp","ask_amount","ask_price","bid_price","bid_amount"]
[1642389731788,0.00341054,3322.6,3321.9,1.15428001]
[1642389732091,0.00284212,3322.5,3321.8,0.434]
[1642389732489,0.0022737,3322.4,3321.8,0.434]
[1642389732890,0.00170527,3322.3,3321.5,4.2481]
[1642389733288,1.52879807,3322.2,3321.6,0.00227369]
[1642389733489,1.82879807,3322.2,3321.6,0.00227369]
[1642389733690,1.82766122,3322.2,3321.6,0.00227369]
[1642389733890,3.37517384,3322.2,3321.6,0.00227369]
[1642389735538,1.37428736,3321.7,3321.6,0.00227369]
[1642389736240,1.37428736,3321.7,3321.1,0.00511581]
[1642389741086,1.37428736,3321.7,3321.2,2.57697112]
[1642389741489,1.37428736,3321.7,3321.3,0.00397896]
[1642389742333,3.31452837,3322.1,3321.3,0.00397896]
[1642389742537,3.31452837,3322.1,3321.4,2.57697112]
[1642389742737,2.99972165,3322.1,3321.4,2.57697112]
[1642389742936,1.84751262,3322.2,3321.5,0.00284212]
[1642389743133,3.08200732,3322.1,3321.5,0.0020114]
[1642389743334,3.08340646,3322.1,3321.5,0.0020114]
[1642389743537,0.00083072,3322.0,3321.5,0.0020114]
[1642389744135,1.20854052,3321.8,3321.5,0.0020114]
[1642389744335,1.20854052,3321.8,3321.3,0.00314824]
[1642389753689,0.3,3321.7,3321.3,0.00314824]
[1642389756694,1.20854052,3321.8,3321.3,0.00314824]
[1642389761486,0.3,3321.7,3321.3,0.00314824]
[1642389766449,0.00083072,3322.0,3321.3,0.00314824]
[1642389769691,0.00083072,3322.0,3321.7,1.47046648]
[1642389769890,0.00083072,3322.0,3321.8,2.89913218]
[1642389770089,0.00083072,3322.0,3321.9,0.434]
[1642389770490,0.00083072,3322.0,3321.9,3.11655078]
[1642389770692,0.00083072,3322.0,3321.9,4.55378663]
[1642389772342,0.00083072,3322.0,3321.9,7.13075775]
[1642389773543,3.8423,3322.6,3321.9,7.13075775]
[1642389773943,0.00367284,3322.5,3321.9,7.13075775]
[1642389774446,0.00310442,3322.4,3321.9,7.13075775]
[1642389774847,0.00253599,3322.3,3321.9,7.13075775]
[1642389775043,0.00253599,3322.3,3322.0,2.57697112]
[1642389775245,0.00196757,3322.2,3322.0,2.57697112]
[1642389775701,0.00139914,3322.1,3322.0,2.57697112]
[1642389776900,0.00139914,3322.1,3322.0,5.17272767]
[1642389777106,0.00139914,3322.1,3322.0,2.57697112]
[1642389777504,0.00139914,3322.1,3322.0,5.17411179]
[1642389778708,0.00139914,3322.1,3322.0,2.57697112]
[1642389781240,0.00139914,3322.1,3322.0,5.17902136]
[1642389781836,0.00139914,3322.1,3322.0,5.22174962]
[1642389782237,0.00139914,3322.1,3322.0,2.57697112]
[1642389785590,0.00139914,3322.1,3322.0,5.19935719]
[1642389785790,0.00139914,3322.1,3322.0,5.17209688]
[1642389785992,0.00139914,3322.1,3322.0,2.57697112]
[1642389786193,0.00139914,3322.1,3322.0,5.15900866]
[1642389786400,0.00139914,3322.1,3322.0,2.57697112]
[1642389786592,0.00139914,3322.1,3322.0,5.18329678]
[1642389786851,0.00139914,3322.1,3322.0,5.15128734]
[1642389787040,0.00139914,3322.1,3322.0,2.57697112]
[1642389789745,0.00139914,3322.1,3321.9,1.43723585]
[1642389790144,0.00083072,3322.0,3321.9,1.43723585]
[1642389790599,0.00083072,3322.0,3321.7,0.3]
[1642389790999,0.00083072,3322.0,3321.5,2.9491]
[1642389791200,0.00083072,3322.0,3321.9,2.57676526]
[1642389792000,0.00083072,3322.0,3321.6,2.57820823]
[1642389792201,0.00083072,3322.0,3321.6,3.01220823]
[1642389792399,0.00083072,3322.0,3321.7,0.00087455]
[1642389792800,0.00083072,3322.0,3321.9,2.57676526]
[1642389793604,0.00083072,3322.0,3321.7,2.87763981]
[1642389794206,0.00083072,3322.0,3321.9,2.57676526]
[1642389794849,0.00083072,3322.0,3321.8,2.57676526]
[1642389798996,0.00083072,3322.0,3321.9,2.59110559]
[1642389799696,0.00083072,3322.0,3321.8,5.19527147]
[1642389800098,0.00083072,3322.0,3321.9,2.59545311]
[1642389800296,0.00083072,3322.0,3321.8,2.57676526]
[1642389800497,0.00083072,3322.0,3321.9,2.57676526]
[1642389802162,0.00083072,3322.0,3321.7,2.57763981]
[1642389802753,0.00083072,3322.0,3321.7,0.00087455]
[1642389820451,1.53693794,3322.2,3321.7,0.00087455]
[1642389820999,0.00139914,3322.1,3321.7,0.00087455]
[1642389821397,0.00083072,3322.0,3321.7,0.00087455]
[1642389821796,1.53693794,3322.3,3321.7,0.00087455]
[1642389822199,1.53890551,3322.2,3321.7,0.00087455]
[1642389822600,1.53693794,3322.2,3321.7,0.00087455]
[1642389829395,1.14794745,3321.8,3321.7,0.00087455]
[1642389831098,1.14794745,3321.8,3321.3,0.00314824]
[1642389831598,1.14794745,3321.8,3321.2,0.00371667]
[1642389832050,1.14794745,3321.8,3321.2,2.58093416]
[1642389832448,1.14794745,3321.8,3321.3,0.00314824]
[1642389832857,1.14794745,3321.8,3321.3,2.58036573]
[1642389833250,1.14794745,3321.8,3321.4,0.00257982]
[1642389834053,1.14794745,3321.8,3321.3,0.00314824]
[1642389834452,2.68488539,3321.8,3321.3,0.00314824]
[1642389835458,1.14794745,3321.8,3321.3,0.00314824]
[1642389840551,2.68488539,3321.8,3321.3,0.00314824]
[1642389840949,2.68488539,3321.8,3321.2,2.53036573]
[1642389841150,0.00227369,3321.7,3321.1,1.23084428]
[1642389841651,0.00170527,3321.6,3321.1,1.23084428]
[1642389842052,0.00113684,3321.5,3321.1,1.23084428]
[1642389842450,0.00227369,3321.7,3321.1,1.23084428]
[1642389842851,0.00170527,3321.6,3321.1,1.23084428]
[1642389843299,1.14794745,3321.8,3321.1,1.23084428]
[1642389843300,0.00113684,3321.5,3321.1,1.23084428]
[1642389843496,0.00113684,3321.5,3321.0,1.1455]
[1642389843696,0.00227369,3321.7,3321.0,1.1455]
[1642389843896,0.00227369,3321.7,3321.1,0.00113685]
[1642389844197,0.00170527,3321.6,3320.9,0.0022737]
[1642389844597,0.00113684,3321.5,3320.9,0.0022737]
[1642389845099,0.00170527,3321.6,3320.9,0.0022737]
[1642389845496,0.00113684,3321.5,3320.9,0.0022737]
[1642389845796,1.53807478,3321.5,3320.9,0.0022737]
[1642389846596,2.59497478,3321.5,3320.9,0.0022737]
[1642389847056,2.59497478,3321.5,3320.8,3.2824737]
[1642389847456,0.00284212,3321.4,3320.8,3.2824737]
[1642389847857,0.0022737,3321.3,3320.8,3.2824737]
[1642389848254,0.00170527,3321.2,3320.8,3.2824737]
[1642389848757,0.00113685,3321.1,3320.8,3.2824737]
[1642389849152,0.00284212,3321.4,3320.8,3.2824737]
[1642389849555,0.0022737,3321.3,3320.8,3.2824737]
[1642389849954,1.83693794,3321.5,3320.8,3.2824737]
[1642389849955,0.00170527,3321.2,3320.8,3.2824737]
[1642389850358,0.00113685,3321.1,3320.8,3.2824737]
[1642389851203,0.00113685,3321.1,3320.6,1.2228]
[1642389851408,1.12395656,3320.6,3320.3,0.434]
[1642389851608,1.12395656,3320.6,3320.2,3.32996291]
[1642389851609,2.14665656,3320.6,3320.2,3.32996291]
[1642389851808,2.44665656,3320.6,3320.2,3.32996291]
[1642389852006,2.44665656,3320.6,3320.3,0.00341054]
[1642389852405,2.44665656,3320.6,3320.1,0.00454738]
[1642389852608,0.32733805,3320.4,3320.1,0.00454738]
[1642389853912,0.32733805,3320.4,3320.0,0.00511581]
[1642389855849,0.32733805,3320.4,3319.9,0.00568423]
[1642389858109,1.35053805,3320.4,3319.9,0.00568423]
[1642389858300,2.48485405,3320.4,3319.9,0.00568423]
[1642389858900,2.48485405,3320.4,3319.7,0.00682108]
[1642389859299,1.35053805,3320.4,3319.7,0.00682108]
[1642389864757,1.35053805,3320.4,3319.7,0.53381528]
[1642389865053,1.35053805,3320.4,3319.8,0.00625265]
[1642389865453,1.35053805,3320.4,3319.7,0.00682108]
[1642389870952,1.35053805,3320.4,3319.8,2.57799213]
[1642389871352,1.35053805,3320.4,3319.9,0.00568423]
[1642389872054,2.98595008,3320.3,3319.9,0.00568423]
[1642389872256,2.98595008,3320.3,3319.7,0.00682108]
[1642389873705,0.8091,3320.5,3320.2,0.01224857]
[1642389873706,0.2245,3320.5,3320.2,0.01224857]
[1642389873905,2.16224759,3321.1,3320.2,0.44624857]
[1642389873906,1.53693794,3320.9,3320.2,0.44624857]
[1642389874105,1.53693794,3320.9,3319.7,2.1542095]
[1642389874106,1.53693794,3320.9,3319.8,1.1921]
[1642389874409,2.54373794,3320.9,3319.9,0.00568423]
[1642389874807,1.37596777,3320.8,3319.9,0.00568423]
[1642389875004,1.37596777,3320.8,3319.6,3.235]
[1642389875005,2.67596777,3320.8,3319.7,0.00682108]
[1642389875204,1.67596777,3320.8,3319.7,2.97181542]
[1642389875605,1.67596777,3320.8,3319.8,0.00625265]
[1642389876304,1.21184721,3320.3,3319.8,0.00625265]
[1642389876507,1.51184721,3320.3,3319.8,2.58426922]
[1642389876955,1.51184721,3320.3,3319.9,0.00568423]
[1642389877953,1.51184721,3320.3,3319.2,2.96499434]
[1642389877954,1.51184721,3320.3,3319.5,0.00795793]
[1642389878153,1.51184721,3320.3,3319.2,2.92408911]
[1642389878561,1.51184721,3320.3,3319.0,4.11139434]
[1642389878562,0.00511581,3320.2,3319.0,4.11139434]
[1642389878760,1.15382812,3319.3,3319.0,4.11139434]
[1642389878959,1.15382812,3319.3,3319.1,0.00113685]
[1642389879365,1.15382812,3319.3,3318.8,0.00284212]
[1642389879665,1.15382812,3319.3,3318.7,0.00341054]
[1642389880461,1.15382812,3319.3,3318.7,3.49555838]
[1642389880709,1.15382812,3319.3,3318.7,0.53056404]
[1642389880911,1.15382812,3319.3,3318.8,0.00284212]
[1642389881709,1.15382812,3319.3,3318.8,2.58124465]
[1642389882110,1.15382812,3319.3,3318.9,0.0022737]
[1642389883313,1.15382812,3319.3,3318.9,0.7553037]
[1642389883511,1.15382812,3319.3,3319.0,0.753]
[1642389883710,1.15382812,3319.3,3319.0,0.00170527]
[1642389884112,2.67219489,3319.3,3319.0,0.00170527]
[1642389884356,2.67219489,3319.3,3319.0,2.57840253]
[1642389884755,1.15382812,3319.3,3319.0,2.57840253]
[1642389885154,1.15382812,3319.3,3318.9,0.0022737]
[1642389885556,1.15382812,3319.3,3318.8,0.00284212]
[1642389885755,1.15382812,3319.3,3318.8,0.52997012]
[1642389885955,1.15382812,3319.3,3318.8,0.00284212]
[1642389886155,1.15382812,3319.3,3318.9,0.0022737]
[1642389886356,1.15382812,3319.3,3318.8,0.00284212]
[1642389888117,1.15382812,3319.3,3318.8,2.58124465]
[1642389888399,1.15382812,3319.3,3318.9,0.0022737]
[1642389889301,1.15382812,3319.3,3318.8,0.00284212]
[1642389892148,1.15382812,3319.3,3318.8,2.58334309]
[1642389892347,1.15382812,3319.3,3318.8,0.00284212]
[1642389892552,1.15382812,3319.3,3318.9,0.0022737]
[1642389892853,1.15382812,3319.3,3318.8,0.00284212]
[1642389894953,1.15382812,3319.3,3318.7,0.00341054]
[1642389896200,1.15382812,3319.3,3318.7,2.58181307]
[1642389896400,1.15382812,3319.3,3318.8,2.57168303]
[1642389896605,1.15382812,3319.3,3318.8,2.57452515]
[1642389896801,1.15382812,3319.3,3318.9,0.0022737]
[1642389897202,2.98332392,3319.2,3318.8,0.00284212]
[1642389897406,2.03232812,3319.3,3318.8,0.00284212]
[1642389898202,2.03232812,3319.3,3318.7,0.00341054]
[1642389898404,1.15382812,3319.3,3318.7,0.00341054]
[1642389899203,1.15382812,3319.3,3318.6,0.00397897]
[1642389900253,1.15382812,3319.3,3318.6,2.5823815]
[1642389900557,1.15382812,3319.3,3318.7,0.00341054]
[1642389901155,1.15382812,3319.3,3318.7,2.58181307]
[1642389901560,1.15382812,3319.3,3318.8,0.00284212]
[1642389901953,0.3,3319.2,3318.8,0.00284212]
[1642389902155,4.47791265,3319.2,3318.8,0.00284212]
[1642389902554,4.47791265,3319.2,3318.7,0.00341054]
[1642389902955,4.04932183,3319.2,3318.7,0.00341054]
[1642389903202,1.0752,3319.2,3318.7,0.00341054]
[1642389903405,3.85447757,3319.2,3318.7,0.00341054]
[1642389903602,0.8775,3319.2,3318.7,0.00341054]
[1642389903802,0.8775,3319.2,3318.5,0.00454739]
[1642389904405,3.88981851,3319.2,3318.5,0.00454739]
[1642389904600,1.3492285,3318.7,3318.5,0.00454739]
[1642389906002,1.3492285,3318.7,3318.6,2.57840253]
[1642389906400,1.3492285,3318.7,3318.6,2.5823815]
[1642389907860,1.3492285,3318.7,3318.6,0.00397897]
[1642389908262,3.25745292,3319.2,3318.0,0.00738951]
[1642389909461,1.53626856,3318.8,3318.0,0.00738951]
[1642389909661,1.14449382,3318.3,3318.0,0.00738951]
[1642389909864,1.53626856,3318.8,3318.1,2.57885923]
[1642389910262,1.53626856,3318.8,3318.2,0.00625266]
[1642389910708,6.74028574,3319.4,3318.2,0.00625266]
[1642389910911,3.6494,3319.4,3318.2,0.00625266]
[1642389911109,1.56258898,3318.7,3318.2,0.00625266]
[1642389911705,1.56258898,3318.7,3318.3,2.57885923]
[1642389912104,1.56258898,3318.7,3318.4,0.00511581]
[1642389913108,1.56258898,3318.7,3318.5,2.57885923]
[1642389913505,1.56258898,3318.7,3318.6,0.00397897]
[1642389914764,1.56258898,3318.7,3317.7,3.42970865]
[1642389914765,1.86258898,3318.7,3318.2,0.00625266]
[1642389914955,2.57278898,3318.7,3317.8,0.00852635]
[1642389915356,1.0,3318.6,3317.8,0.00852635]
[1642389915758,1.52310635,3317.9,3317.8,0.00852635]
[1642389916958,1.79343941,3317.9,3317.8,0.00852635]
[1642389917561,1.79343941,3317.9,3317.4,0.01080005]
[1642389917760,1.79343941,3317.9,3317.0,0.01307374]
[1642389918212,1.1972012,3317.7,3317.0,0.01307374]
[1642389918412,1.1972012,3317.7,3316.9,5.17424223]
[1642389918916,0.00341054,3317.6,3316.9,5.17424223]
[1642389919311,0.00284212,3317.5,3316.9,3.63038444]
[1642389919711,0.00227369,3317.4,3316.9,3.63038444]
[1642389920114,0.00170527,3317.3,3316.9,3.63038444]
[1642389920515,0.00113685,3317.2,3316.9,3.63038444]
[1642389922353,0.00113685,3317.2,3316.9,3.63838444]
[1642389923556,0.00113685,3317.2,3316.9,2.847882]
[1642389925156,0.00113685,3317.2,3317.0,1.0]
[1642389925604,0.00113685,3317.2,3316.9,5.616064]
[1642389925807,0.00113685,3317.2,3317.0,1.0]
[1642389926709,0.00113685,3317.2,3317.0,1.75339]
[1642389927105,0.00113685,3317.2,3317.0,2.05339]
[1642389927305,0.00113685,3317.2,3317.0,2.06139]
[1642389928106,7.7659,3318.7,3317.1,11.25]
[1642389928406,1.83711681,3318.8,3317.1,11.25]
[1642389928407,0.00397896,3317.9,3317.7,0.5272689]
[1642389928609,0.00397896,3317.9,3317.7,1.2612689]
[1642389928805,0.00341054,3317.8,3317.7,1.2612689]
[1642389929665,0.00341054,3317.8,3317.7,2.7676489]
[1642389929855,0.00341054,3317.8,3317.7,0.5272689]
[1642389930056,0.00341054,3317.8,3317.6,0.3]
[1642389930254,0.00341054,3317.8,3317.5,1.4707]
[1642389930454,0.00284211,3317.7,3317.5,1.4707]
[1642389930856,1.17771679,3318.3,3317.5,1.4707]
[1642389930857,0.00227369,3317.6,3317.5,1.4707]
[1642389932457,0.00227369,3317.6,3317.5,4.16440923]
[1642389932657,0.00227369,3317.6,3317.5,6.74354164]
[1642389937552,0.00227369,3317.6,3317.5,6.69354164]
[1642389938454,0.00227369,3317.6,3317.5,3.99983241]
[1642389939254,0.00227369,3317.6,3317.5,6.66554328]
[1642389939857,0.00227369,3317.6,3317.5,3.99983241]
[1642389946667,0.00227369,3317.6,3317.5,2.57913241]
[1642389947463,4.75227369,3317.6,3317.5,2.57913241]
[1642389947663,0.00227369,3317.6,3317.5,2.57913241]
[1642389948611,3.85227369,3317.6,3317.0,2.57913241]
[1642389949011,0.00170527,3317.5,3317.0,2.57913241]
[1642389949419,1.13543219,3317.4,3317.0,2.57913241]
[1642389949610,1.87523219,3317.4,3317.0,2.57913241]
[1642389949814,1.87409535,3317.4,3317.0,2.57913241]
[1642389950112,0.00170527,3317.5,3317.0,3.10658501]
[1642389950511,1.14827661,3317.3,3317.0,3.10658501]
[1642389950911,1.14827661,3317.3,3317.0,2.87913241]
[1642389951509,1.14827661,3317.3,3317.1,2.57913241]
[1642389953962,1.14827661,3317.3,3317.0,2.57913241]
[1642389956008,4.10988625,3317.3,3317.0,2.57913241]
[1642389956211,1.14827661,3317.3,3317.0,2.52913241]
[1642389956910,1.14827661,3317.3,3316.9,1.673382]
[1642389957310,1.14827661,3317.3,3317.0,0.00113685]
[1642389959671,8.8,3317.2,3316.9,1.62451885]
[1642389959875,8.8,3317.2,3316.0,2.99570865]
[1642389959876,10.95,3317.1,3316.0,2.99570865]
[1642389960082,0.00113685,3317.2,3316.1,2.96499434]
[1642389960276,0.00113685,3317.2,3316.1,2.97011015]
[1642389960474,0.00113685,3317.2,3316.2,1.1504]
[1642389960673,0.00113685,3317.2,3316.3,2.96499434]
[1642389960876,0.00113685,3317.2,3316.3,2.96897331]
[1642389961073,0.00113685,3317.2,3316.4,0.00341054]
[1642389961876,1.36667873,3317.1,3316.4,1.28519438]
[1642389962276,0.00113685,3317.2,3316.5,0.00284212]
[1642389962475,0.00113685,3317.2,3316.5,2.68734703]
[1642389962681,0.00113685,3317.2,3316.5,2.61010675]
[1642389962876,0.00113685,3317.2,3316.6,0.0022737]
[1642389963613,0.00113685,3317.2,3316.9,1.43071345]
[1642389964513,0.00113685,3317.2,3317.0,2.63464136]
[1642389964713,0.00113685,3317.2,3316.9,1.43071345]
[1642389966864,0.00113685,3317.2,3317.1,1.33826811]
[1642389967672,0.00113685,3317.2,3316.9,1.43071345]
[1642389968868,0.00113685,3317.2,3317.0,2.60511737]
[1642389969066,0.00113685,3317.2,3317.0,2.62535078]
[1642389969267,0.00113685,3317.2,3316.9,2.94731059]
[1642389969668,0.00113685,3317.2,3317.1,0.75342]
[1642389970369,0.00113685,3317.2,3316.9,2.94731059]
[1642389970636,0.00113685,3317.2,3317.0,5.15382102]
[1642389970819,0.00113685,3317.2,3317.1,7.55]
[1642389971019,0.00113685,3317.2,3317.1,8.55]
[1642389972019,0.00113685,3317.2,3317.1,1.0]
[1642389972220,0.00113685,3317.2,3317.0,2.7147396]
[1642389972918,0.00113685,3317.2,3317.1,6.04627729]
[1642389973123,0.00113685,3317.2,3317.1,7.04627729]
[1642389975375,0.00113685,3317.2,3317.1,3.79627729]
[1642389975561,0.00113685,3317.2,3317.1,2.79627729]
[1642389975765,0.00113685,3317.2,3317.1,3.79627729]
[1642389976365,0.00113685,3317.2,3317.1,4.23027729]
[1642389976965,0.00113685,3317.2,3317.1,4.18027729]
[1642389977167,0.00113685,3317.2,3317.1,6.76001428]
[1642389978922,9.12261681,3318.4,3317.2,10.95]
[1642389978923,5.20501681,3318.4,3317.2,10.95]
[1642389979219,0.00625265,3318.3,3317.6,0.75321]
[1642389979417,0.00625265,3318.3,3317.7,2.98615854]
[1642389979618,0.00568423,3318.2,3317.8,1.0]
[1642389979818,0.00568423,3318.2,3317.9,2.91427265]
[1642389980018,5.20501681,3318.4,3317.9,2.91427265]
[1642389980019,0.00511581,3318.1,3317.9,1.35286631]
[1642389980418,0.00454738,3318.0,3317.9,1.35286631]
[1642389980619,0.00454738,3318.0,3317.9,4.73798491]
[1642389981017,0.00454738,3318.0,3317.9,4.7223085]
[1642389981961,0.00454738,3318.0,3317.9,5.7223085]
[1642389982164,0.00454738,3318.0,3317.9,13.1063085]
[1642389982363,0.00454738,3318.0,3317.9,10.49005631]
[1642389982864,0.00454738,3318.0,3317.9,3.54005631]
[1642389983163,0.00454738,3318.0,3317.9,7.09005631]
[1642389983875,0.00454738,3318.0,3317.9,3.54005631]
[1642389984267,0.00454738,3318.0,3317.9,8.95598478]
[1642389986024,0.00454738,3318.0,3317.9,10.38302032]
[1642389986422,0.00454738,3318.0,3317.9,8.95598478]
[1642389986821,0.00454738,3318.0,3317.9,6.11919222]
[1642389987020,0.00454738,3318.0,3317.9,8.73579061]
[1642389987221,0.00454738,3318.0,3317.9,7.73579061]
[1642389987421,0.00454738,3318.0,3317.9,8.73579061]
[1642389987822,0.00454738,3318.0,3317.9,9.88610053]
[1642389994016,0.00454738,3318.0,3317.9,10.18610053]
[1642389994414,0.00454738,3318.0,3317.9,10.48610053]
[1642389994817,3.6702,3319.3,3317.9,10.48610053]
[1642389994818,3.6702,3319.3,3318.0,10.95]
[1642389995018,1.53693794,3319.5,3318.1,5.24727145]
[1642389995219,0.00625266,3319.1,3318.5,1.50604]
[1642389995417,0.00625266,3319.1,3318.9,1.15965572]
[1642389995617,1.53693794,3319.5,3318.9,1.15965572]
[1642389995618,0.00568424,3319.0,3318.9,1.15965572]
[1642389996517,0.00568424,3319.0,3318.9,2.91262572]
[1642389996720,0.00568424,3319.0,3318.9,3.66559572]
[1642389996970,0.00568424,3319.0,3318.9,6.40932285]
[1642389997170,0.00568424,3319.0,3318.9,2.66559572]
[1642389997369,0.00568424,3319.0,3318.9,1.91262572]
[1642389998168,0.00568424,3319.0,3318.9,0.75297]
[1642389998369,0.00568424,3319.0,3318.7,2.94675638]
[1642389998771,0.00511581,3318.9,3318.7,2.94675638]
[1642389998973,0.00511581,3318.9,3318.8,0.75302]
[1642389999169,2.82791667,3319.7,3318.8,3.58490772]
[1642389999370,2.82791667,3319.7,3319.0,1.54386246]
[1642389999570,0.00852635,3319.5,3319.1,2.65105152]
[1642389999972,0.00795793,3319.4,3319.0,1.54386246]
[1642390000372,0.00738951,3319.3,3319.0,1.54386246]
[1642390000833,0.00682108,3319.2,3319.0,1.54386246]
[1642390001136,0.00682108,3319.2,3318.8,1.50603]
[1642390001334,1.37289725,3319.7,3318.8,0.75302]
[1642390001335,0.00625266,3319.1,3318.8,0.75302]
[1642390001539,0.00625266,3319.1,3318.8,1.75302]
[1642390001734,0.00625266,3319.1,3318.7,0.434]
[1642390001735,0.00568424,3319.0,3318.7,0.434]
[1642390002134,0.00568424,3319.0,3318.6,1.1873]
[1642390002135,0.00511581,3318.9,3318.6,1.1873]
[1642390002337,0.00511581,3318.9,3318.2,5.74036]
[1642390002539,0.00454739,3318.8,3317.9,1.2169]
[1642390002936,0.00397897,3318.7,3317.9,1.2169]
[1642390003337,0.00341054,3318.6,3317.9,1.2169]
[1642390003536,0.00341054,3318.6,3318.0,1.52439658]
[1642390003736,0.00284212,3318.5,3318.0,1.52439658]
[1642390004143,0.0022737,3318.4,3318.0,1.52439658]
[1642390004569,0.00170527,3318.3,3318.0,1.52439658]
[1642390004967,0.00113685,3318.2,3318.0,1.52439658]
[1642390005467,0.00341054,3318.6,3318.0,1.52439658]
[1642390005866,0.00284212,3318.5,3317.9,1.2169]
[1642390006266,0.0022737,3318.4,3317.9,1.2169]
[1642390006676,1.30326119,3318.7,3317.6,3.0973]
[1642390006677,0.00170527,3318.3,3317.6,3.0973]
[1642390006867,1.42441483,3318.2,3317.4,6.0136311]
[1642390007067,1.42555168,3318.2,3317.7,0.00170527]
[1642390009327,1.42555168,3318.2,3317.6,0.00227369]
[1642390009524,1.72555168,3318.2,3317.6,0.00227369]
[1642390010226,1.25640022,3317.7,3317.6,0.00227369]
[1642390010625,1.25640022,3317.7,3317.3,0.00397896]
[1642390011628,1.25640022,3317.7,3317.3,2.57952963]
[1642390011883,3.03739947,3317.6,3317.3,2.57952963]
[1642390012068,3.03739947,3317.6,3317.4,0.00341054]
[1642390012267,1.38280767,3317.5,3317.4,0.00341054]
[1642390012868,1.38280767,3317.5,3316.7,0.0073895]
[1642390013068,1.38280767,3317.5,3316.8,0.00682108]
[1642390013269,1.38280767,3317.5,3316.7,0.0073895]
[1642390013671,1.38280767,3317.5,3316.6,0.00795793]
[1642390014574,1.38280767,3317.5,3316.7,2.57984027]
[1642390014972,1.38280767,3317.5,3316.8,0.00682108]
[1642390015373,1.25640022,3317.7,3316.8,0.00682108]
[1642390015626,0.3,3317.6,3316.8,0.00682108]
[1642390015827,1.25640022,3317.7,3316.8,0.00682108]
[1642390016226,1.25640022,3317.7,3316.9,2.57984027]
[1642390016629,1.25640022,3317.7,3317.0,0.00568423]
[1642390016630,2.64592019,3317.7,3317.0,0.00568423]
[1642390017628,2.64592019,3317.7,3317.1,2.57984027]
[1642390018128,2.64592019,3317.7,3317.2,0.00454738]
[1642390019969,3.05351032,3317.6,3316.7,0.0073895]
[1642390020169,3.35351032,3317.6,3316.7,0.0073895]
[1642390020567,1.52550364,3317.2,3316.6,0.00795793]
[1642390020769,3.19249384,3317.1,3316.6,0.00795793]
[1642390020970,3.19249384,3317.1,3316.8,2.57991333]
[1642390021369,3.49249384,3317.1,3316.9,0.00625266]
[1642390021570,3.80319384,3317.1,3316.9,0.00625266]
[1642390021869,3.75959635,3317.1,3316.9,0.00625266]
[1642390022073,3.73310528,3317.1,3316.9,0.00625266]
[1642390022268,3.73310528,3317.1,3316.4,0.00909477]
[1642390022471,1.38754799,3316.7,3316.3,0.0096632]
[1642390022669,0.6897,3317.1,3316.3,0.0096632]
[1642390022869,0.3107,3317.1,3316.3,0.7632432]
[1642390023117,1.52550364,3317.2,3316.5,2.58023159]
[1642390023319,1.52591698,3317.6,3316.5,2.58023159]
[1642390023518,1.82591698,3317.6,3316.6,0.00795793]
[1642390023918,1.43056688,3316.8,3316.6,0.00795793]
[1642390024519,1.43056688,3316.8,3316.4,2.58023159]
[1642390024520,2.54416688,3316.8,3316.5,0.00852635]
[1642390025819,2.54416688,3316.8,3316.3,0.0096632]
[1642390026219,2.54416688,3316.8,3316.2,0.01023162]
[1642390027275,1.33170661,3316.4,3316.2,0.01023162]
[1642390027872,1.33170661,3316.4,3315.8,0.01250531]
[1642390028073,1.33170661,3316.4,3315.7,0.01307374]
[1642390029272,1.33170661,3316.4,3315.8,2.5804587]
[1642390029672,1.33170661,3316.4,3315.9,0.01193689]
[1642390030073,1.2006,3316.7,3315.9,0.04147476]
[1642390030474,1.2006,3316.7,3316.0,0.01136847]
[1642390031118,2.43225046,3316.7,3316.0,2.59182717]
[1642390031328,2.33225046,3316.7,3316.0,2.59182717]
[1642390031519,2.33225046,3316.7,3316.1,0.01080004]
[1642390031820,2.33225046,3316.7,3316.1,2.59125874]
[1642390032019,1.23165046,3316.7,3316.1,2.59125874]
[1642390032219,1.23165046,3316.7,3316.2,0.01023162]
[1642390033422,1.23165046,3316.7,3316.0,0.01136847]
[1642390035271,1.23165046,3316.7,3316.2,0.02942815]
[1642390035671,1.23165046,3316.7,3316.3,0.0096632]
[1642390037877,1.53165046,3316.7,3316.3,0.0096632]
[1642390039220,4.54528329,3316.7,3316.3,0.0096632]
[1642390039819,4.24528329,3316.7,3316.3,0.0096632]
[1642390040224,1.23165046,3316.7,3316.3,0.0096632]
[1642390040419,4.23719619,3316.7,3316.3,0.0096632]
[1642390040620,4.53719619,3316.7,3316.3,0.0096632]
[1642390041021,4.53719619,3316.7,3315.8,0.01250531]
[1642390041221,1.53165046,3316.7,3315.8,0.01250531]
[1642390041422,4.62293956,3316.7,3315.8,0.01250531]
[1642390042372,4.62293956,3316.7,3315.9,2.58053988]
[1642390042775,4.62293956,3316.7,3316.0,0.01136847]
[1642390043073,1.12978349,3316.1,3316.0,0.01136847]
[1642390043473,1.12978349,3316.1,3315.8,0.01250531]
[1642390043671,1.12978349,3316.1,3315.4,0.01477901]
[1642390044673,1.12624417,3315.5,3315.4,0.01477901]
[1642390044872,1.12978349,3316.1,3315.4,0.01477901]
[1642390045277,1.12978349,3316.1,3315.6,0.02964761]
[1642390045723,1.12978349,3316.1,3315.7,0.01307374]
[1642390046323,1.32590839,3315.8,3315.7,0.01307374]
[1642390046525,1.32590839,3315.8,3315.7,2.59372488]
[1642390048929,1.12978349,3316.1,3315.7,2.59372488]
[1642390049403,1.12978349,3316.1,3315.8,0.01250531]
[1642390050188,1.11342032,3316.0,3315.9,2.58065114]
[1642390050591,1.11342032,3316.0,3315.9,2.59258803]
[1642390051791,1.11342032,3316.0,3315.9,0.01193689]
[1642390052189,1.11342032,3316.0,3315.7,0.02961103]
[1642390052190,1.11342032,3316.0,3315.8,0.01250531]
[1642390053936,1.06342032,3316.0,3315.8,0.01250531]
[1642390055134,1.06342032,3316.0,3315.9,0.02953787]
[1642390055534,1.06342032,3316.0,3315.9,0.04147476]
[1642390072177,5.46342032,3316.0,3315.9,0.04147476]
[1642390072578,1.06342032,3316.0,3315.9,0.04147476]
[1642390075645,1.12978349,3316.1,3314.8,3.2991]
[1642390075646,3.74430935,3316.1,3314.8,3.2991]
[1642390075831,3.44430935,3316.1,3314.8,3.2991]
[1642390076030,0.2563,3316.1,3314.9,0.00568423]
[1642390076230,3.45061102,3316.1,3314.9,0.00568423]
[1642390076636,0.2563,3316.1,3314.9,0.00568423]
[1642390076829,1.32082514,3315.1,3314.9,0.00568423]
[1642390077230,1.32082514,3315.1,3315.0,2.58148889]
[1642390077629,1.32082514,3315.1,3315.0,2.6776407]
[1642390078430,1.32082514,3315.1,3315.0,0.09615181]
[1642390079234,1.32082514,3315.1,3315.0,2.6776407]
[1642390080079,0.00113685,3316.1,3315.0,2.6776407]
[1642390080276,0.00113685,3316.1,3315.1,2.75024518]
[1642390080474,0.00113685,3316.1,3315.3,0.091036]
[1642390080674,0.00113685,3316.1,3315.3,2.74306959]
[1642390080876,0.00113685,3316.1,3315.5,0.091036]
[1642390081075,1.55881469,3315.6,3315.5,0.091036]